Cogmind - Beta 14 @@@ ROGUE MODE // 2024.11.06 @ 23:09:57 Player: GayPredator Result: Destroyed by 4I-RHH(R) with Subdweller Shrapnel Launcher Performance ------------- Evolutions (0) 0 Regions Visited (2) 400 Robots Destroyed (25) 125 Value Destroyed (570) 570 Prototype IDs (0) 0 Alien Tech Used (0) 0 Bonus (0) 0 TOTAL SCORE: 1095 Bonus ------- None Cogmind --------- Core Integrity 0/250 Matter 167/300 Energy 100/100 System Corruption 0% Temperature Cool (0) Movement Walking (400) Ox4 Location -10/Subcaves Parts ------- > --- POWER (1) -------- (None) > --- PROPULSION (2) --- Aluminum Leg > --- UTILITY (2) ------ High-capacity Storage Unit Hardened Light Armor Plating > --- WEAPON (2) ------- Improved Light Cannon > --- INVENTORY (20) --- Improved Heat Sink Disposable Heat Sink Large Storage Unit Seismic Detector Power Shielding Propulsion Shielding Hacking Suite Hacking Suite Tractor Beam Hammer Peak State ------------ > --- POWER ------------ Ion Engine > --- PROPULSION ------- Wheel Wheel > --- UTILITY ---------- High-capacity Storage Unit Hardened Light Armor Plating > --- WEAPON ----------- Improved Light Cannon Improved Light Cannon > --- INVENTORY -------- Light Ion Engine Aluminum Leg Aluminum Leg Improved Heat Sink Disposable Heat Sink Large Storage Unit Seismic Detector Power Shielding Propulsion Shielding Hardened Light Armor Plating Hacking Suite Hacking Suite Tractor Beam Improved Light Cannon Improved Light Cannon Hammer [Rating: 12] Favorites ----------- Power Ion Engine Engine Ion Engine Propulsion Wheel Leg Aluminum Leg Wheel Wheel Utility High-capacity Storage Unit Device Seismic Detector Storage High-capacity Storage Unit Protection Hardened Light Armor Plating Weapon Improved Light Cannon Energy Gun EM Shotgun Ballistic Gun Light Assault Rifle Ballistic Cannon Improved Light Cannon Build | -11 -10 -10 ------- Run | Yrd Mat Sub Slots Evolved . | . . . Power . | . . . Propulsion . | . . . Utility . | . . . Weapon . | . . . Parts Attached 29 | 8 14 7 Power 4 | 1 2 1 Engine 4 | 1 2 1 Core . | . . . Reactor . | . . . Propulsion 6 | 2 2 2 Treads . | . . . Leg 2 | . . 2 Wheel 4 | 2 2 . Hover . | . . . Flight . | . . . Utility 8 | 2 4 2 Device 2 | 1 1 . Storage 3 | 1 2 . Processor . | . . . Hackware . | . . . Protection 3 | . 1 2 Artifact . | . . . Weapon 11 | 3 6 2 Energy Gun 3 | 1 2 . Energy Cannon . | . . . Ballistic Gun 2 | 2 . . Ballistic Cannon 6 | . 4 2 Launcher . | . . . Special Weapon . | . . . Impact Weapon . | . . . Slashing Weapon . | . . . Piercing Weapon . | . . . Special Melee Weapon . | . . . Unidentified Prototypes . | . . . Parts Lost 13 | . 4 9 Power 2 | . . 2 Propulsion 4 | . 1 3 Utility 2 | . 1 1 Weapon 5 | . 2 3 Highest Loss Streak 8 | . 4 8 To Critical Strikes 1 | . . 1 Average Slot Usage (%) 96 | . 97 94 Engine 13 | . 14 11 Leg 1 | . . 4 Wheel 24 | . 25 22 Device 8 | . 11 . Storage 14 | . 14 14 Protection 5 | . 2 14 Ballistic Gun 1 | . 1 . Ballistic Cannon 25 | . 25 26 Peak Build Rating 12 | 7 11 12 Average Rating 10 | 5 10 11 On Entrance 6 | . 7 11 Naked Turns . | . . . Heaviest Build 58 | 13 54 58 Greatest Support 20 | 20 20 20 Greatest Overweight (x) 4 | . 3 4 Average Overweight (x) 1 | . 1 2 Largest Inventory Capacity 20 | 8 20 20 Average Capacity 17 | 7 17 20 Most Carried 16 | 5 16 16 Average Carried 12 | 2 12 14 Final Capacity 20 | 8 20 20 Final Carried 16 | 5 16 10 Class Distribution -------------------- 100% | Mutant Dominant Class ---------------- Mutant | -10/Materials Mutant | -10/Subcaves Resources | -11 -10 -10 ----------- Run | Yrd Mat Sub Matter Collected 798 | 290 350 158 Remotely . | . . . Salvage Created 654 | 116 474 64 Parts 44 | 4 37 3 Haulers Intercepted . | . . . Recyclers Shooed 1 | . 1 . Parts Field Recycled . | . . . Retrieved Matter . | . . . Parts Self-Destructed 3 | . . 3 Prevented . | . . . Kills | -11 -10 -10 ------- Run | Yrd Mat Sub Combat Hostiles Destroyed 15 | . 10 5 Guns 3 | . 3 . Cannons 10 | . 5 5 AOE 2 | . 2 . Classes Destroyed 9 | 2 6 1 Worker 1 | . 1 . Builder 1 | . 1 . Tunneler 1 | 1 . . Recycler 3 | 1 2 . Operator 2 | . 2 . Watcher 2 | . 2 . Swarmer 3 | . 3 . Grunt 8 | . 7 1 Subdweller 4 | . . 4 Best Kill Streak 6 | 1 6 2 Combat Bots Only 6 | . 6 2 Max Kills in Single Turn 1 | 1 1 1 Gunslinging . | . . . Exploded 1 | . 1 . Melee . | . . . Uniques/NPCs Destroyed . | . . . Combat | -11 -10 -10 -------- Run | Yrd Mat Sub Hostile Shots Fired 116 | . 45 71 Missed 29 | . 9 20 Damage Taken 1764 | . 423 1341 Core 262 | . 105 157 Absorbed by Shields . | . . . Core Remaining (%) 100 | 100 . . Volleys Fired 86 | 11 44 31 Largest 2 | 2 2 2 Hottest 90 | 50 90 78 Shots Fired 160 | 16 86 58 Gun 36 | 16 20 . Cannon 124 | . 66 58 Launcher . | . . . Special . | . . . Kinetic 134 | 10 66 58 Thermal 6 | 6 . . Explosive . | . . . Electromagnetic 20 | . 20 . Robot Hit Streak 21 | 2 5 21 Robot Miss Streak 5 | 3 5 2 Penetration Max . | . . . Secondary Targets 2 | . 2 . Max Gunslinging Chain 1 | . 1 . Shots Hit Robots 100 | 8 44 48 Core Hits 35 | 4 22 9 Critical Kills . | . . . Critical Parts Destroyed . | . . . Critical Strikes 2 | . 1 1 Blast 2 | . 1 1 Melee Attacks . | . . . Impact . | . . . Slashing . | . . . Piercing . | . . . Sneak Attacks . | . . . Combat Hostiles . | . . . Follow-up Attacks . | . . . Damage Inflicted 2047 | 85 968 994 Guns 281 | 85 196 . Cannons 1667 | . 673 994 Explosions 99 | . 99 . Melee . | . . . Ramming . | . . . Kinetic 1701 | 34 673 994 Thermal 150 | 51 99 . Explosive . | . . . Electromagnetic 196 | . 196 . Impact . | . . . Slashing . | . . . Piercing . | . . . Highest Corruption . | . . . Average Corruption . | . . . Corruption Purged . | . . . Corruption Blocked . | . . . Overload Shots . | . . . Overflow Damage 5 | . 5 . Projectiles 5 | . 5 . Explosions . | . . . Melee . | . . . Knockbacks 21 | . 10 11 Impact . | . . . Kinetic 20 | . 9 11 Secondary 1 | . 1 . Self-Inflicted Damage 32 | . 32 . Shots 2 | . 2 . Rammed . | . . . Targets Rammed . | . . . Kicked . | . . . Crushed . | . . . Highest Temperature 293 | 60 293 3 Average Temperature 86 | 32 90 3 Received Heat Transfer 405 | . 150 255 Effects 1 | . 1 . Interference 1 | . 1 . Siege Activations . | . . . Robots Corrupted . | . . . Combat Hostiles . | . . . Parts Fried . | . . . Impact Corruptions . | . . . Robots Melted . | . . . Combat Hostiles . | . . . Parts Melted . | . . . Heat Transferred 298 | 148 150 . Parts Sabotaged . | . . . Parts Stolen . | . . . Parts Stripped . | . . . Power Chain Reactions 2 | . 2 . Alert | -11 -10 -10 ------- Run | Yrd Mat Sub Peak Influence 226 | 10 226 . Initial 6 | . 6 . Average 102 | 2 109 . Maximum Alert Level 1 | . 1 . Low Security (%) 90 | 100 89 . Level 1 9 | . 10 . Level 2 . | . . . Level 3 . | . . . Level 4 . | . . . Level 5 . | . . . High Security . | . . . Max Security . | . . . Squads Dispatched 3 | . 3 . Investigation 1 | . 1 . Extermination . | . . . Reinforcement 2 | . 2 . Assault . | . . . Garrison . | . . . Intercept . | . . . Searches Triggered . | . . . Construction Impeded . | . . . Haulers Reinforced . | . . . Active Scanning Responses . | . . . Cargo Convoy Interrupts . | . . . Stealth | -11 -10 -10 --------- Run | Yrd Mat Sub Distress Signals 1 | . 1 . Communications Jammed . | . . . Distress Signals . | . . . Times Spotted 24 | . 17 7 Peak Tracking Total 4 | . 4 3 Tactical Retreats 1 | . . 1 Traps | -11 -10 -10 ------- Run | Yrd Mat Sub Traps Triggered 1 | . 1 . Indirectly . | . . . Trap Hack Attempts . | . . . Triggered . | . . . Disarmed . | . . . Reprogrammed . | . . . Reused . | . . . Traps Extracted . | . . . Installed . | . . . Triggered . | . . . Machines | -11 -10 -10 ---------- Run | Yrd Mat Sub Machines Disabled . | . . . Max in Single Turn . | . . . Machines Repaired . | . . . Machines Dismantled . | . . . Machines Sabotaged . | . . . Overloaded Fab Kills . | . . . Hacking | -11 -10 -10 --------- Run | Yrd Mat Sub Machines Accessed 2 | . 2 . Terminals 2 | . 2 . Fabricators . | . . . Repair Stations . | . . . Recycling Units . | . . . Scanalyzers . | . . . Garrison Access . | . . . Total Hacks 4 | . 4 . Successful 3 | . 3 . Failed 1 | . 1 . Catastrophic 1 | . 1 . Database Lockouts . | . . . Manual 3 | . 3 . Terminals 4 | . 4 . Fabricators . | . . . Repair Stations . | . . . Recycling Units . | . . . Scanalyzers . | . . . Garrison Access . | . . . Terminal Hacks 1 | . 1 . Branch Access Points 1 | . 1 . Fabricator Hacks . | . . . Repair Station Hacks . | . . . Recycling Unit Hacks . | . . . Scanalyzer . | . . . Garrison Access Hacks . | . . . Unauthorized Hacks 2 | . 2 . Terminals 2 | . 2 . Botnet 2 | . 2 . Fabricators . | . . . Repair Stations . | . . . Recycling Units . | . . . Scanalyzers . | . . . Garrison Access . | . . . Data Cores Recovered . | . . . Used . | . . . Hacking Detections 2 | . 2 . Full Trace Events . | . . . Feedback Events . | . . . Feedback Blocked . | . . . Robot Schematics Acquired . | . . . Robots Built . | . . . Authchips . | . . . Time . | . . . Total Robot Build Rating . | . . . Part Schematics Acquired . | . . . Parts Built . | . . . Authchips . | . . . Time . | . . . Total Part Build Rating . | . . . Parts Repaired . | . . . Time . | . . . Parts Recycled . | . . . Recycled Matter . | . . . Retrieved Matter . | . . . Retrieved Components . | . . . Parts Scanalyzed . | . . . Part Schematics Acquired . | . . . Parts Damaged . | . . . Bothacking | -11 -10 -10 ------------ Run | Yrd Mat Sub Used RIF Installer . | . . . Robots Hacked . | . . . Non-combat . | . . . Combat . | . . . Robot Hacks Applied . | . . . Relay Couplers Released . | . . . Fabnet Peak Effective % . | . . . Robots Rewired . | . . . Allies Hacked . | . . . Hacks Repelled . | . . . Allies | -11 -10 -10 -------- Run | Yrd Mat Sub Total Allies . | . . . Largest Group . | . . . Highest-Rated Group . | . . . Highest-Rated Ally . | . . . Total Orders . | . . . Ally Attacks . | . . . Total Damage . | . . . Kills . | . . . Allies Corrupted . | . . . Allies Melted . | . . . Intel | -11 -10 -10 ------- Run | Yrd Mat Sub Robot Analysis Total . | . . . Derelict Logs Recovered . | . . . Drone Launches . | . . . Drone Recoveries . | . . . Exploration | -11 -10 -10 ------------- Run | Yrd Mat Sub Turns Passed 1551 | 75 1061 415 Spaces Moved 820 | 38 533 249 Core 2 | 2 . . Treads . | . . . Legs 15 | . . 15 Wheels 803 | 36 533 234 Hover . | . . . Flight . | . . . Fastest Speed 50 | 50 80 110 Average Speed 105 | 78 101 119 Slowest Speed 400 | 80 125 400 Overloaded Moves . | . . . Propulsion Burnouts . | . . . Robots Hopped . | . . . Cave-ins Triggered . | . . . Exploration Rate (%) 38 | 4 83 29 Regions Visited 2 Branch Regions 1 Pre-discovered Areas . | . . . Known Exits Taken . | . . . Unknown Exits Taken 2 | 1 1 . Scrap Searched . | . . . Spaces Dug . | . . . Terrain Destroyed 5 | . 5 . Melee . | . . . Projectile 2 | . 2 . AOE 3 | . 3 . Terrain Rammed . | . . . Walls Destroyed . | . . . Machines Disabled . | . . . Actions | -11 -10 -10 --------- Run | Yrd Mat Sub Total 1342 | 66 968 308 Wait 368 | 2 345 21 Move 818 | 37 532 249 Hop . | . . . Pick Up 26 | 7 19 . Fast Attach 12 | 5 7 . Attach 12 | 3 3 6 Detach 2 | 1 1 . Swap 5 | . 4 1 Drop 13 | . 13 . Fire 86 | 11 44 31 Melee . | . . . Ram . | . . . Kick . | . . . Crush . | . . . Escape Stasis . | . . . Rewire . | . . . Trap . | . . . Miscellaneous . | . . . Route ------- -11/Scrapyard -10/Materials (discovered 4 exits: [*Mat x2] / Min / [*Sub]) -10/Subcaves History --------- Turn | Location | Event 30 | -11/Scrapyard | Discovered new exit (range 16) 76 | -11/Scrapyard | Entered Materials 308 | -10/Materials | Build established: Mutant 357 | -10/Materials | Lost 4 parts (1n1u2w) 530 | -10/Materials | Discovered new exit (range 15) 680 | -10/Materials | Identified exit to Mines 782 | -10/Materials | Discovered new exit (range 8) 1134 | -10/Materials | Discovered new exit (range 4) 1137 | -10/Materials | Entered Subcaves 1212 | -10/Subcaves | Core integrity fell below 50% 1362 | -10/Subcaves | Shifting Twisted Machinery released Sub. Beam Cannon 1451 | -10/Subcaves | Ambushed by Subdweller buried in earth 1478 | -10/Subcaves | Core integrity fell below 20% 1533 | -10/Subcaves | Lost 8 parts (2p2n1u3w) 1552 | -10/Subcaves | Destroyed by 4I-RHH(R) with Subdweller Shrapnel Launcher Last Messages --------------- 01469_ Ion Engine destroyed. 01472_ 7U-JQG(R) knocked back. 01475_ NC-JBE(R) knocked back. 01478_ Hrd. Light Armor Plating destroyed. 01482_ NC-JBE(R) knocked back. 01486_ Wheel destroyed. 01488_ NC-JBE(R) Sub. Optics blasted off. 01491_ Destroyed Scrap Shield. 01491_ NC-JBE(R) knocked back. 01494_ NC-JBE(R) destroyed. 01496_ Lgt. Ion Engine destroyed. 01500_ 7U-JQG(R) knocked back. 01502_ Critical hit (Destroy). 01502_ Imp. Light Cannon destroyed. 01506_ Destroyed Scrap Shield. 01510_ 7U-JQG(R) destroyed. 01520_ Acquired 10 matter. 01523_ Acquired 6 matter. 01533_ Acquired 19 matter. 01547_ Aluminum Leg destroyed. Map ----- +----------------------------------------------------+ | ?????????????????????????????????????????????????? | | ?????????????????????????????????????????????????? | | ??????????????????????????????? ??????????????? | | ????????????????????????????### ##????????????? | | ????????????????????????????# #????????????? | | ???????????????????????????? #????????????? | | ????????????????????????????? ????????????? | | ????????????????????????????? ?????????????? | | ????????????????????????????? ?????????????? | | ????????????????????????????## ?????????????? | | ???????????????????????????##" #?????????????? | | ???????????????????????????#"" "#?????????????? | | ??????????????????????????##" "#?????????????? | | ??????????##??????????????? ;##????????????? | | ?????????# #????????????????#" R ;##???????????? | | ??##?#### ####?????????????# #???????????? | | ??? ? ####?????????## #????????????? | | ???#" #????????##" ;##???????????? | | ??? #????????#" #???????????? | | ????" # ##???????#" ##??????????? | | ????? # #????##### #??????????? | | ###?## #???## # #???????????? | | #?# ?????##; #???????????? | | ### #??????##### ; #???????????? | | ## ###???## #???????????? | | #???# @ #???????????? | | #???## ;; #???????????? | | ##????### ;;;; ###???????????? | | #####????# ## ; & #?????????????? | | ### ## ##???# #### #; & ##????????????? | | #### #??## ######## % ##???????????? | | #?# #### #?????# #???????????? | | ?# ## #?????# #####???????????? | | ### ## #?????####???????????????? | | ?## ######????????????????????????? | | #?# ##?????????????????????????????? | | # ?# ###??????????????????????????????? | | ##????????????????????????????????? | | #### ###### ##?????????????????????????????????? | | ##??###????####??????????????????????????????????? | | ?????????????????????????????????????????????????? | | ?????????????????????????????????????????????????? | | ?????????????????????????????????????????????????? | | ?????????????????????????????????????????????????? | | ?????????????????????????????????????????????????? | | ?????????????????????????????????????????????????? | | ?????????????????????????????????????????????????? | | ?????????????????????????????????????????????????? | | ?????????????????????????????????????????????????? | | ?????????????????????????????????????????????????? | +----------------------------------------------------+ Best States ------------- Heat Dissipation 25 Energy Generation 10 Energy Capacity 250 Matter Stores 300 Matter Capacity 300 Sight Range 16 Terrain Scan Density 10 Armor Coverage 150 Evasion (%) 44 Item Schematics ----------------- None Robot Schematics ------------------ None Fabricated ------------ Nothing Alien Tech Used ----------------- None Achievements -------------- None Challenges ------------ None Game ------ Seed ReactiveBurstChronowheel Manual? 0 Play Time 00:22:23 Cumulative 152.7 hours Start 2024.11.06 @ 22:48:45 End 2024.11.06 @ 23:09:57 Sessions 1 Manual Loads 0 Difficulty Rogue Special Mode None Game No. 133 Rogue 94 Adventurer 32 Explorer 7 Win Type - Total 1 Types 1/0/0/0/0/0/0/0/0 Lore% 26 Gallery% 65 Achievement% 53 Wizard Run 0 Options --------- Layout 2 ASCII 0 Keyboard 0 Movement Mouse Keybinds 0 Fullscreen 2 Font 16/SmallcapsGlow Map View 25x24 Zoom Use 94% Tactical HUD 1 Map Filters NONE Filters NONE Steam SD RUN: db5b7006-29e6-4b6d-abf2-238b49e04907